bitfinex/quotes_SOLUSD_20240822
["timestamp","ask_amount","ask_price","bid_price","bid_amount"]
[1724316301227,6.9686,143.5,143.45,7.8141247]
[1724316301527,6.9686,143.5,143.45,0.8434247]
[1724316301908,6.9686,143.5,143.45,7.8142247]
[1724316302305,1.74253415,143.49,143.45,0.8434247]
[1724316302513,8.71193415,143.49,143.45,0.8434247]
[1724316303507,6.9688,143.5,143.45,0.8434247]
[1724316303905,6.9688,143.5,143.45,7.8143247]
[1724316305137,1.74253188,143.49,143.45,7.8143247]
[1724316306325,6.9688,143.5,143.45,7.8143247]
[1724316306649,1.74248209,143.49,143.45,7.8143247]
[1724316308056,8.71178209,143.49,143.45,0.8434247]
[1724316308739,1.74248209,143.49,143.45,0.8434247]
[1724316308943,1.74256113,143.49,143.45,0.8434247]
[1724316309316,8.71136031,143.5,143.45,0.8434247]
[1724316313761,6.9696,143.48,143.45,0.8434247]
[1724316313925,1.74272476,143.47,143.45,0.8434247]
[1724316314122,1.74268355,143.48,143.45,0.8434247]
[1724316316936,6.9689,143.5,143.45,0.8434247]
[1724316317141,6.9689,143.5,143.45,7.8143247]
[1724316317863,8.71085617,143.51,143.46,21.5485]
[1724316318037,8.71085617,143.51,143.46,32.0085]
[1724316318765,6.9686,143.5,143.46,21.5485]
[1724316319469,8.71075617,143.51,143.46,28.5189]
[1724316319963,1.74243092,143.5,143.46,28.5189]
[1724316322867,8.71103092,143.5,143.46,21.5485]
[1724316324077,6.9692,143.49,143.46,21.5485]
[1724316324362,1.74265562,143.48,143.46,21.5485]
[1724316329871,8.71255562,143.48,143.46,21.5485]
[1724316330076,1.74275923,143.47,143.46,15.5046]
[1724316330257,1.74276286,143.49,143.46,15.5046]
[1724316330457,6.9704,143.47,143.45,0.8434247]
[1724316330770,1.74294182,143.46,143.45,0.8434247]
[1724316333687,8.71344182,143.46,143.45,0.8434247]
[1724316334981,6.9702,143.47,143.45,0.8434247]
[1724316335192,1.74287846,143.46,143.45,0.8434247]
[1724316335889,8.71337846,143.46,143.45,0.8434247]
[1724316341867,8.83886846,143.46,143.45,0.8434247]
[1724316342068,8.71337846,143.46,143.45,0.8434247]
[1724316349972,6.9705,143.46,143.45,0.8434247]
[1724316350171,6.9702,143.47,143.45,0.8434247]
[1724316351203,6.9705,143.46,143.45,0.8434247]
[1724316362812,7.09599,143.46,143.45,0.8434247]
[1724316363017,7.22148,143.46,143.45,0.8434247]
[1724316363400,8.9648628,143.46,143.45,0.8434247]
[1724316363613,8.8393728,143.46,143.45,0.8434247]
[1724316364206,39.4248628,143.46,143.45,0.8434247]
[1724316368506,84.4248628,143.46,143.45,0.8434247]
[1724316369201,105.3448628,143.46,143.45,0.8434247]
[1724316369407,96.74365578,143.46,143.45,0.8434247]
[1724316369919,117.66365578,143.46,143.45,0.8434247]
[1724316373627,96.74365578,143.46,143.45,0.8434247]
[1724316374528,86.28365578,143.46,143.45,0.8434247]
[1724316374697,96.74365578,143.46,143.45,0.8434247]
[1724316377697,41.28365578,143.46,143.45,0.8434247]
[1724316377930,51.74365578,143.46,143.45,0.8434247]
[1724316378130,48.19585175,143.46,143.45,0.8434247]
[1724316378435,48.07036175,143.46,143.45,0.8434247]
[1724316379416,68.99036175,143.46,143.45,0.8434247]
[1724316379612,69.11585175,143.46,143.45,0.8434247]
[1724316380740,117.66365578,143.46,143.45,0.8434247]
[1724316383543,6.9738,143.4,143.37,15.4024]
[1724316386244,1.74371802,143.39,143.37,15.4024]
[1724316388630,8.71771802,143.39,143.37,15.4024]
[1724316390216,6.9753,143.37,143.34,15.886]
[1724316390416,1.74409751,143.36,143.34,15.886]
[1724316391547,6.9753,143.37,143.34,15.886]
[1724316391928,6.9746,143.38,143.34,15.886]
[1724316392242,8.71824301,143.39,143.34,15.886]
[1724316392542,1.74390361,143.38,143.34,15.886]
[1724316392932,1.74390361,143.38,143.34,22.8623]
[1724316394421,6.9741,143.39,143.35,10.46]
[1724316395064,1.7438898,143.38,143.35,10.46]
[1724316396370,1.7438898,143.38,143.34,22.8623]
[1724316397463,1.7438898,143.38,143.34,15.886]
[1724316397967,8.7186898,143.38,143.34,15.886]
[1724316398270,6.9748,143.38,143.34,15.886]
[1724316398873,6.975,143.37,143.34,15.886]
[1724316400977,6.9745,143.38,143.34,15.886]
[1724316402185,10.46,143.4,143.34,15.886]
[1724316402354,6.9746,143.38,143.34,15.886]
[1724316402555,8.71865533,143.38,143.34,15.886]
[1724316404269,1.74405533,143.38,143.34,15.886]
[1724316404478,21.86960497,143.39,143.34,15.886]
[1724316405673,6.9746,143.38,143.34,15.886]
[1724316405972,28.71816197,143.39,143.34,26.346]
[1724316406181,8.71816197,143.39,143.34,26.346]
[1724316406759,8.71816197,143.39,143.34,33.3223]
[1724316406760,1.74406197,143.39,143.34,33.3223]
[1724316407661,26.9736,143.4,143.34,33.3223]
[1724316408584,1.74377038,143.39,143.34,33.3223]
[1724316410193,28.71737105,143.4,143.34,33.3223]
[1724316414090,1.74376992,143.39,143.34,33.3223]
[1724316415391,8.71786992,143.39,143.34,33.3223]
[1724316416691,8.71786992,143.39,143.34,22.8623]
[1724316417271,6.9745,143.38,143.34,15.886]
[1724316418490,1.74389408,143.37,143.34,15.886]
[1724316419492,8.71843967,143.38,143.34,15.886]
[1724316420273,1.74400133,143.37,143.34,15.886]
[1724316420988,8.71890133,143.37,143.34,15.886]
[1724316421194,1.74401074,143.36,143.34,15.886]
[1724316422484,1.74413159,143.38,143.34,15.886]
[1724316423210,6.9751,143.37,143.34,15.886]
[1724316423374,8.71864301,143.38,143.34,15.886]
[1724316424481,6.975,143.37,143.34,15.886]
[1724316424791,1.74410495,143.36,143.34,15.886]
[1724316427585,8.71960495,143.36,143.34,15.886]
[1724316427793,1.7442127,143.35,143.34,15.886]
[1724316428097,8.7201127,143.35,143.34,15.886]
[1724316428289,6.9759,143.35,143.34,15.886]
[1724316428487,6.9759,143.35,143.31,15.9753247]
[1724316428693,1.74432293,143.34,143.31,15.9753247]
[1724316429603,6.9759,143.35,143.31,15.9753247]
[1724316429792,1.74438704,143.35,143.31,15.9753247]
[1724316430112,8.72038704,143.35,143.31,15.9753247]
[1724316430678,6.9764,143.34,143.31,15.9753247]
[1724316430873,6.976,143.35,143.31,15.9753247]
[1724316431184,8.72036685,143.35,143.31,15.9753247]
[1724316431880,6.976,143.35,143.31,15.9753247]
[1724316432185,6.9753,143.37,143.32,10.46]
[1724316433794,1.74417709,143.36,143.32,10.46]
[1724316433984,1.74421323,143.35,143.32,10.46]
[1724316435695,1.74421323,143.35,143.31,15.9753247]
[1724316436080,8.72011323,143.35,143.31,15.9753247]
[1724316436281,6.9756,143.36,143.31,15.9753247]
[1724316436686,1.74428108,143.35,143.31,15.9753247]
[1724316437404,1.74428108,143.35,143.31,26.4353247]
[1724316439006,1.74428108,143.35,143.31,15.9753247]
[1724316439579,6.9767,143.34,143.31,15.9753247]
[1724316439795,1.74451783,143.33,143.31,15.9753247]
[1724316444890,6.9762,143.35,143.31,15.9753247]
[1724316446210,6.9764,143.34,143.31,15.9753247]
[1724316446520,8.72090956,143.34,143.31,15.9753247]
[1724316450317,8.72051301,143.35,143.31,15.9753247]
[1724316450533,26.9757,143.36,143.31,15.9753247]
[1724316450817,6.975,143.37,143.33,10.46]
[1724316451003,6.9745,143.38,143.33,10.46]
[1724316451196,6.9745,143.38,143.35,10.46]
[1724316451393,6.974,143.39,143.35,10.46]
[1724316451901,6.974,143.39,143.35,26.6885]
[1724316452410,1.74390949,143.4,143.35,26.6885]
[1724316452411,8.71740949,143.4,143.35,26.6885]
[1724316452597,20.0,143.39,143.35,26.6885]
[1724316452804,28.71793417,143.39,143.35,26.6885]
[1724316454630,20.0,143.39,143.35,26.6885]
[1724316454793,6.9736,143.4,143.35,26.6885]
[1724316455306,8.71742939,143.4,143.35,26.6885]
[1724316456993,1.74383036,143.39,143.35,26.6885]
[1724316457812,8.71742442,143.4,143.35,26.6885]
[1724316459409,8.71742442,143.4,143.35,16.2285]
[1724316459611,1.74382451,143.39,143.35,16.2285]
[1724316459929,8.71782451,143.39,143.35,16.2285]
[1724316460629,1.74382766,143.38,143.35,16.2285]
[1724316460832,6.974,143.39,143.35,16.2285]
[1724316461518,1.74382443,143.38,143.35,16.2285]
[1724316462644,6.974,143.39,143.35,16.2285]
[1724316463939,8.71822155,143.38,143.35,16.2285]
[1724316464235,1.74394556,143.37,143.35,16.2285]
[1724316464826,8.71894556,143.37,143.35,16.2285]
[1724316465132,6.975,143.37,143.35,16.2285]
[1724316466123,6.9746,143.38,143.35,16.2285]
[1724316466511,1.74399028,143.37,143.35,16.2285]
[1724316467513,8.71899028,143.37,143.35,16.2285]
[1724316467717,6.975,143.37,143.35,16.2285]
[1724316469115,1.7440858,143.36,143.35,16.2285]
[1724316469629,6.975,143.37,143.35,16.2285]
[1724316478738,6.9746,143.38,143.35,16.2285]
[1724316480621,6.9741,143.39,143.35,16.2285]
[1724316481372,6.9736,143.4,143.35,26.6885]
[1724316481941,6.9731,143.41,143.36,1.39494887]
[1724316482624,6.9731,143.41,143.37,10.46]
[1724316482955,6.9727,143.42,143.37,10.46]
[1724316484539,6.9731,143.41,143.36,10.46]
[1724316484945,6.9726,143.42,143.36,10.46]
[1724316487563,1.74347783,143.41,143.35,16.2285]
[1724316487766,12.32896783,143.41,143.35,16.2285]
[1724316489754,6.9738,143.4,143.35,16.2285]
[1724316489933,1.74385727,143.39,143.35,16.2285]
[1724316490967,8.71765499,143.4,143.35,16.2285]
[1724316491269,8.71689985,143.41,143.35,26.6885]
[1724316492065,10.46,143.38,143.35,16.2285]
[1724316492370,1.74402007,143.37,143.35,16.2285]
[1724316492979,8.71922007,143.37,143.35,16.2285]
[1724316495153,6.9754,143.36,143.35,16.2285]
[1724316496162,6.9759,143.35,143.32,16.1395]
[1724316496881,8.7207729,143.34,143.32,16.1395]
[1724316497557,6.9761,143.35,143.32,16.1395]
[1724316498854,6.9755,143.36,143.32,16.1395]
[1724316499451,8.72008795,143.35,143.32,16.1395]
[1724316500074,6.9759,143.35,143.32,16.1395]
[1724316503573,6.9756,143.36,143.32,16.1395]
[1724316505756,1.74415946,143.37,143.32,16.1395]
[1724316505982,6.976,143.35,143.32,16.1395]
[1724316512176,6.9756,143.36,143.32,16.1395]
[1724316516065,6.9759,143.35,143.32,16.1395]
[1724316523580,6.9756,143.36,143.32,16.1395]
[1724316526208,8.71997617,143.35,143.32,16.1395]
[1724316526803,6.9759,143.35,143.32,16.1395]
[1724316534012,6.9756,143.36,143.32,16.1395]
[1724316536786,14.22896403,143.38,143.32,26.5995]
[1724316536989,6.25259178,143.4,143.34,10.46]
[1724316537196,8.28413895,143.42,143.34,10.46]
[1724316537197,8.28413895,143.42,143.36,15.024]
[1724316537606,1.74364018,143.41,143.36,15.024]
[1724316537794,8.28413895,143.42,143.38,10.46]
[1724316537991,17.4258,143.47,143.41,15.024]
[1724316538313,1.74316655,143.46,143.41,15.024]
[1724316538618,17.4258,143.47,143.41,15.024]
[1724316538619,1.7431744,143.45,143.41,15.024]
[1724316538809,6.9716,143.44,143.41,15.024]
[1724316541022,1.74304328,143.43,143.41,15.024]
[1724316542521,8.71514328,143.43,143.41,15.024]
[1724316542815,6.9721,143.43,143.41,15.024]
[1724316543795,8.71577986,143.42,143.41,15.024]
[1724316544119,6.9731,143.41,143.37,22.7149]
[1724316545594,1.74355779,143.4,143.37,22.7149]
[1724316548892,8.71705779,143.4,143.37,22.7149]
[1724316549105,6.9735,143.4,143.37,22.7149]
[1724316549923,8.71745888,143.39,143.37,22.7149]
[1724316550130,1.74355888,143.39,143.37,16.4613]
[1724316550433,6.9741,143.39,143.37,16.4613]
[1724316550725,8.71781633,143.39,143.37,16.4613]
[1724316551436,6.9736,143.4,143.37,16.4613]
[1724316554823,1.74356486,143.39,143.37,16.4613]
[1724316555023,6.9736,143.4,143.37,16.4613]
[1724316555330,8.71732221,143.4,143.37,16.4613]
[1724316556026,8.71772056,143.39,143.37,16.4613]
[1724316556207,6.9736,143.4,143.37,16.4613]
[1724316557698,8.71672015,143.41,143.37,16.4613]
[1724316557901,1.74360948,143.4,143.37,16.4613]
[1724316558136,6.9744,143.38,143.37,16.4613]
[1724316562138,1.74381697,143.39,143.33,21.9922]
[1724316562304,6.9751,143.37,143.33,21.9922]
[1724316562744,8.71914274,143.37,143.33,21.9922]
[1724316563411,6.9751,143.37,143.33,21.9922]
[1724316563963,6.9751,143.37,143.34,1.3952258]
[1724316564240,6.9751,143.37,143.33,21.9922]
[1724316565735,6.9746,143.38,143.33,21.9922]
[1724316565915,6.9741,143.39,143.33,21.9922]
[1724316566116,6.9736,143.4,143.34,55.46]
[1724316572724,6.9745,143.38,143.34,10.46]
[1724316573035,6.9741,143.39,143.34,10.46]
[1724316574848,6.9741,143.39,143.33,21.9922]
[1724316577828,8.71785319,143.39,143.33,21.9922]
[1724316579647,6.9741,143.39,143.33,21.9922]
[1724316580247,6.9741,143.39,143.34,45.0]
[1724316584244,6.9737,143.4,143.34,45.0]
[1724316585063,6.974,143.39,143.34,45.0]
[1724316586937,6.974,143.39,143.33,21.9922]
[1724316587658,6.9745,143.38,143.33,21.9922]
[1724316593342,6.9741,143.39,143.33,21.9922]
[1724316594471,8.71781962,143.39,143.33,21.9922]
[1724316595560,6.9741,143.39,143.33,21.9922]
[1724316598084,8.71780646,143.39,143.33,21.9922]
[1724316598292,6.9741,143.39,143.33,21.9922]
[1724316600161,8.71778817,143.39,143.33,21.9922]
[1724316600486,6.9741,143.39,143.33,21.9922]
[1724316601188,8.71779516,143.39,143.33,21.9922]
[1724316601356,6.9741,143.39,143.33,21.9922]
[1724316602583,6.9736,143.4,143.34,56.85488869]
[1724316603288,6.974,143.39,143.34,55.46]
[1724316603970,6.974,143.39,143.35,1.39482419]
[1724316604174,6.9736,143.4,143.35,16.2872]
[1724316604477,6.9731,143.41,143.36,45.0]
[1724316604679,6.9726,143.42,143.36,45.0]
[1724316605001,6.9726,143.42,143.37,7.52121849]
[1724316605983,6.9726,143.42,143.39,16.1514]
[1724316607881,10.46,143.44,143.39,16.1514]
[1724316608208,17.4318,143.44,143.39,16.1514]
[1724316610191,6.972,143.43,143.39,16.1514]
[1724316611007,8.71503548,143.43,143.39,16.1514]
[1724316611784,17.4328,143.42,143.39,16.1514]
[1724316618607,6.973,143.41,143.39,16.1514]
[1724316619817,17.4326,143.42,143.39,16.1514]
[1724316620117,17.74925445,143.44,143.39,16.1514]
[1724316620340,26.9723,143.43,143.39,16.1514]
[1724316621309,6.9723,143.43,143.39,16.1514]
[1724316623626,10.46,143.42,143.39,16.1514]
[1724316625743,6.9723,143.43,143.39,16.1514]
[1724316625906,10.46,143.42,143.39,16.1514]
[1724316628232,10.46,143.42,143.4,1.39445415]
[1724316628434,6.9723,143.43,143.4,1.39445415]
[1724316629523,6.9717,143.44,143.4,1.39443306]
[1724316629715,17.4317,143.44,143.4,46.39443306]
[1724316630110,10.46,143.44,143.4,46.39443306]
[1724316630315,12.31079696,143.46,143.41,6.6107]
[1724316630525,6.9704,143.47,143.43,16.1578]
[1724316630918,10.46,143.46,143.43,16.1578]
[1724316631245,17.4307,143.46,143.43,16.1578]
[1724316631624,10.46,143.44,143.43,16.1578]
[1724316632239,17.4315,143.44,143.43,16.1578]
[1724316632442,17.4315,143.44,143.41,6.6107]
[1724316632632,10.46,143.42,143.41,6.6107]
[1724316636818,10.46,143.43,143.41,6.6107]
[1724316645279,17.4312,143.45,143.41,6.6107]
[1724316645560,6.9708,143.46,143.41,6.6107]
[1724316645769,6.9708,143.46,143.42,1.3943052]
[1724316645939,6.9708,143.46,143.43,1.39413303]
[1724316646262,17.4302,143.47,143.43,1.39413303]
[1724316646939,17.4302,143.47,143.42,1.39412948]
[1724316646940,6.9706,143.46,143.42,1.39412948]
[1724316647142,6.9706,143.46,143.41,6.6107]
[1724316647143,6.9706,143.46,143.43,1.39413385]
[1724316648048,6.9706,143.46,143.42,45.0]
[1724316652270,10.46,143.45,143.42,45.0]
[1724316652475,17.4312,143.45,143.41,6.6107]
[1724316664377,10.46,143.43,143.41,6.6107]
[1724316664883,10.46,143.45,143.41,6.6107]
[1724316665990,17.4311,143.45,143.41,6.6107]
[1724316667293,10.46,143.45,143.41,6.6107]
[1724316667461,10.46,143.43,143.41,6.6107]
[1724316670792,10.46,143.43,143.4,16.2079]
[1724316670990,17.432,143.43,143.4,16.2079]
[1724316673274,10.46,143.43,143.4,16.2079]
[1724316674089,17.432,143.43,143.4,16.2079]
[1724316674595,10.46,143.43,143.4,16.2079]
[1724316676177,10.46,143.43,143.41,1.39443843]
[1724316677067,10.46,143.43,143.4,16.2079]
[1724316682591,10.46,143.41,143.4,16.2079]
[1724316682794,10.46,143.41,143.37,6.1128]
[1724316683304,17.433,143.41,143.37,6.1128]
[1724316686009,10.46,143.39,143.37,6.1128]
[1724316686193,10.46,143.39,143.36,16.1392]
[1724316691811,6.9732,143.41,143.37,1.39478726]
[1724316691984,17.4332,143.41,143.36,16.1392]
[1724316697712,7.2672275,143.45,143.37,46.39461438]
[1724316697912,22.76356596,143.48,143.39,15.7371]
[1724316697913,6.9707,143.46,143.39,15.7371]
[1724316698213,17.4307,143.46,143.4,46.39417679]
[1724316698710,17.4307,143.46,143.4,45.0]
[1724316699912,6.9707,143.46,143.4,45.0]
[1724316700107,10.46,143.45,143.4,45.0]
[1724316704195,10.46,143.45,143.41,1.39416019]
[1724316704526,10.46,143.45,143.4,45.0]
[1724316706701,10.46,143.45,143.4,45.0]
[1724316710129,6.9706,143.46,143.4,45.0]
[1724316710299,10.46,143.45,143.4,45.0]
[1724316710506,10.46,143.45,143.41,23.29198407]
[1724316710718,10.46,143.45,143.42,45.0]
[1724316711024,10.46,143.45,143.43,1.3941566]
[1724316713421,17.4301,143.47,143.43,1.3941566]
[1724316713729,17.4301,143.47,143.42,45.0]
[1724316724042,10.46,143.45,143.42,45.0]
[1724316724248,10.46,143.45,143.41,21.8978]
[1724316727252,10.46,143.45,143.42,1.39420621]
[1724316727455,10.46,143.45,143.41,21.8978]
[1724316729018,17.4302,143.47,143.42,1.39413775]
[1724316729219,17.4302,143.47,143.43,1.39407345]
[1724316729419,10.46,143.47,143.43,1.39407345]
[1724316732541,6.9696,143.48,143.43,1.39407345]
[1724316732750,14.23875871,143.5,143.45,16.409]
[1724316732962,13.91208073,143.51,143.46,1.39382524]
[1724316732963,10.46,143.49,143.46,1.39382524]
[1724316735265,10.46,143.49,143.45,16.409]
[1724316736764,10.46,143.5,143.46,45.0]
[1724316746146,10.46,143.48,143.45,22.9172]
[1724316747854,17.4288,143.5,143.45,22.9172]
[1724316748065,10.46,143.5,143.45,22.9172]
[1724316748361,10.46,143.5,143.46,45.0]
[1724316752351,10.46,143.5,143.47,1.39371843]
[1724316752553,6.9674,143.53,143.47,1.39371843]
[1724316752739,10.46,143.52,143.47,1.39371843]
[1724316753255,10.46,143.52,143.46,45.0]
[1724316753944,10.46,143.52,143.47,0.12549]
[1724316755670,6.9674,143.53,143.47,0.12549]
[1724316755859,10.46,143.52,143.47,0.12549]
[1724316757774,17.4279,143.52,143.46,45.0]
[1724316758071,10.46,143.5,143.46,45.0]
[1724316764277,10.46,143.48,143.45,22.9172]
[1724316767961,10.46,143.46,143.41,22.9205]
[1724316768167,10.46,143.44,143.41,22.9205]
[1724316775295,17.4305,143.46,143.41,22.9205]
[1724316778299,10.46,143.44,143.41,22.9205]
[1724316780865,10.46,143.44,143.36,23.1053]
[1724316781065,10.46,143.42,143.36,23.1053]
[1724316784175,10.46,143.42,143.37,45.0]
[1724316787389,6.972,143.43,143.37,45.0]
[1724316787581,10.46,143.42,143.37,45.0]
[1724316788301,6.9717,143.44,143.37,45.0]
[1724316788504,10.46,143.42,143.38,0.12549]
[1724316794508,10.46,143.42,143.37,45.0]
[1724316798211,6.972,143.43,143.37,45.0]
[1724316798212,10.46,143.43,143.38,1.51995235]
[1724316798412,6.9711,143.45,143.38,1.51995235]
[1724316798630,17.4315,143.44,143.38,1.51995235]
[1724316799002,17.4315,143.44,143.38,0.12549]
[1724316799304,17.4315,143.44,143.38,0.25098]
[1724316809729,17.4315,143.44,143.39,15.842]
[1724316809929,17.4315,143.44,143.4,45.0]
[1724316810147,6.971,143.45,143.4,45.0]
[1724316810350,10.46,143.44,143.4,45.0]
[1724316814256,6.9708,143.46,143.41,1.39434178]
[1724316815025,17.4308,143.46,143.4,51.3248]
[1724316815850,10.46,143.44,143.4,51.3248]
[1724316816255,17.4315,143.44,143.4,6.3248]
[1724316816558,10.46,143.42,143.4,6.3248]
[1724316821649,10.46,143.42,143.4,7.71933893]
[1724316822525,10.46,143.42,143.4,6.3248]
[1724316823225,10.46,143.42,143.4,7.71929285]
[1724316825251,10.46,143.42,143.4,6.3248]
[1724316827258,10.46,143.43,143.4,6.3248]
[1724316828161,10.46,143.43,143.4,7.71927754]
[1724316828839,10.46,143.43,143.4,6.3248]
[1724316834962,10.46,143.43,143.39,15.842]
[1724316834963,12.20319714,143.43,143.39,15.842]
[1724316835142,10.46,143.43,143.39,15.842]
[1724316836179,1.74319068,143.46,143.39,15.842]
[1724316836474,10.46,143.43,143.4,45.0]
[1724316839050,19.17534578,143.43,143.39,15.842]
[1724316839288,10.46,143.41,143.39,15.842]
[1724316840353,10.46,143.43,143.39,15.842]
[1724316846380,10.46,143.43,143.4,46.3944303]
[1724316846965,17.4312,143.45,143.41,1.39443039]
[1724316850563,10.46,143.45,143.41,1.39443039]
[1724316850961,10.46,143.45,143.4,45.0]
[1724316855068,6.971,143.46,143.4,45.0]
[1724316855386,10.46,143.44,143.4,45.0]
[1724316863389,6.9711,143.45,143.4,45.0]
[1724316863695,10.46,143.44,143.4,45.0]
[1724316868975,1.74286813,143.48,143.4,45.0]
[1724316869175,10.46,143.44,143.4,45.0]
[1724316881725,19.17456843,143.44,143.4,45.0]
[1724316882097,19.17456843,143.44,143.39,15.842]
[1724316882806,17.4316,143.44,143.39,15.842]
[1724316883820,10.46,143.44,143.4,1.39452246]
[1724316884021,10.46,143.44,143.4,46.39452246]
[1724316888234,6.9713,143.45,143.4,46.39452246]
[1724316888435,17.4313,143.45,143.4,46.39452246]
[1724316889337,6.9707,143.46,143.41,6.2878]
[1724316889642,17.4307,143.46,143.42,46.39424209]
[1724316889945,10.46,143.46,143.43,1.39425068]
[1724316890127,17.4306,143.46,143.42,45.0]
[1724316893922,6.9725,143.42,143.41,6.2878]
[1724316894239,10.46,143.42,143.39,15.842]
[1724316894448,10.46,143.4,143.39,15.842]
[1724316895447,10.46,143.4,143.33,22.2263]
[1724316895627,10.46,143.4,143.34,20.0]
[1724316896237,10.46,143.4,143.33,22.2263]
[1724316896554,10.46,143.38,143.33,22.2263]
[1724316898040,10.46,143.38,143.34,45.0]
[1724316900842,10.46,143.36,143.33,15.7472]
[1724316901044,10.46,143.34,143.33,15.7472]
[1724316902481,6.9744,143.39,143.33,15.7472]
[1724316902649,10.46,143.37,143.33,15.7472]
[1724316904373,12.20388453,143.37,143.33,15.7472]
[1724316905478,10.46,143.37,143.33,15.7472]
[1724316907663,17.435,143.37,143.33,15.7472]
[1724316908656,10.46,143.35,143.33,15.7472]
[1724316911876,10.46,143.38,143.33,22.2415]
[1724316912062,10.46,143.38,143.34,46.39502809]
[1724316912887,10.46,143.4,143.35,1.39490949]
[1724316913050,6.9726,143.42,143.36,1.39483476]
[1724316913260,17.4326,143.42,143.36,1.39483476]
[1724316913458,6.9726,143.42,143.36,1.39483476]
[1724316913661,10.46,143.41,143.36,1.39483476]
[1724316913882,17.4331,143.41,143.34,45.12549]
[1724316914066,17.4331,143.41,143.35,0.25098]
[1724316914768,10.46,143.41,143.35,0.25098]
[1724316915289,10.46,143.39,143.35,0.25098]
[1724316915595,10.46,143.39,143.34,45.0]
[1724316918786,10.46,143.37,143.34,45.0]
[1724316919045,10.46,143.37,143.33,22.2415]
[1724316920210,10.46,143.37,143.34,45.0]
[1724316923716,10.46,143.37,143.33,22.2415]
[1724316925622,10.46,143.4,143.34,1.39497788]
[1724316925804,10.46,143.4,143.34,46.39497788]
[1724316928096,10.46,143.4,143.35,0.25098]
[1724316931224,6.9733,143.41,143.35,0.25098]
[1724316931431,10.46,143.4,143.35,0.25098]
[1724316932306,17.4326,143.42,143.35,0.25098]
[1724316932712,10.46,143.4,143.35,0.25098]
[1724316935601,10.46,143.36,143.33,22.2415]
[1724316936624,10.46,143.38,143.33,22.2415]
[1724316937005,10.46,143.38,143.34,45.0]
[1724316937406,12.2037886,143.38,143.34,45.0]
[1724316938403,10.46,143.38,143.34,45.0]
[1724316938607,10.46,143.38,143.33,22.2415]
[1724316938608,10.46,143.36,143.33,22.2415]
[1724316940634,10.46,143.36,143.33,15.7472]
[1724316943452,10.46,143.34,143.31,0.8434247]
[1724316943749,1.744101,143.36,143.31,0.8434247]
[1724316943750,10.46,143.32,143.31,0.8434247]
[1724316944125,6.9748,143.38,143.31,0.8434247]
[1724316944350,17.4348,143.38,143.31,0.8434247]
[1724316944537,6.9749,143.37,143.31,0.8434247]
[1724316945047,17.4346,143.38,143.31,0.8434247]
[1724316947535,10.46,143.37,143.31,0.8434247]
[1724316949349,1.7439137,143.36,143.31,0.8434247]
[1724316950163,10.46,143.33,143.31,0.8434247]
[1724316955059,1.74446455,143.32,143.31,0.8434247]
[1724316955863,12.20451379,143.33,143.31,0.8434247]
[1724316956468,10.46,143.33,143.31,0.8434247]
[1724316957470,6.9773,143.32,143.31,0.8434247]
[1724316957643,8.72184842,143.32,143.31,0.8434247]
[1724316962067,17.437,143.33,143.31,0.8434247]
[1724316962868,6.9773,143.32,143.31,0.8434247]
[1724316963168,17.4373,143.32,143.31,0.8434247]
[1724316963344,10.46,143.32,143.31,0.8434247]
[1724316963667,17.4365,143.34,143.31,0.8434247]
[1724316965187,6.9769,143.33,143.31,0.8434247]
[1724316965881,17.4373,143.32,143.31,0.8434247]